[Event "VIII Iberoamericano Mexico 2022"]
[Site "Mexico City"]
[Date "2022.02.19"]
[Round "9.7"]
[White "Cardoso Cardoso, Jose Gabriel"]
[Black "Diaz Perez, Michel Alejandro"]
[Result "1-0"]
[ECO "C54"]
[WhiteElo "2461"]
[BlackElo "2459"]
[Annotator "ChessBase"]
[PlyCount "109"]
[EventDate "2022.02.12"]
[EventType "swiss"]
[EventCountry "MEX"]
[SourceTitle "playchess.com"]
[Source "ChessBase"]
[SourceQuality "1"]
[TimeControl "5400+30"]

1. e4 {[%emt 0:00:10]} e5 {[%emt 0:00:17]} 2. Nf3 {[%emt 0:00:11]} Nc6 {[%emt 0:00:06]} 3. Bc4 {[%emt 0:00:20]} Bc5 {[%emt 0:00:07]} 4. c3 {[%emt 0:00:13]} Nf6 {[%emt 0:00:11]} 5. d3 {[%emt 0:00:09]} a6 {[%emt 0:00:42]} 6. a4 {[%emt 0:00:08]} d6 {[%emt 0:00:46]} 7. O-O {[%emt 0:00:12]} Ba7 {[%emt 0:00:34]} 8. Re1 {[%emt 0:00:34]} h6 {[%emt 0:04:14]} 9. Nbd2 {[%emt 0:01:11]} Ne7 {[%emt 0:06:26]} 10. Nf1 {[%emt 0:00:57]} Ng6 {[%emt 0:00:44]} 11. Ng3 {[%emt 0:00:56]} O-O {[%emt 0:01:32]} 12. h3 {[%emt 0:06:47]} c6 {[%emt 0:07:51]} 13. Bb3 {[%emt 0:00:09]} Be6 {[%emt 0:06:39]} 14. Bc2 {[%emt 0:02:39]} Re8 {[%emt 0:03:12]} 15. d4 {[%emt 0:01:20]} Qc7 {[%emt 0:06:47]} 16. Be3 {[%emt 0:00:33]} Rad8 {[%emt 0:04:31]} 17. Qb1 {[%emt 0:01:17]} Nh7 {[%emt 0:13:40]} 18. Nf5 {[%emt 0:02:09]} Bxf5 {[%emt 0:10:12]} 19. exf5 {[%emt 0:00:09]} Ngf8 {[%emt 0:00:06]} 20. Bd3 {[%emt 0:17:55]} exd4 {[%emt 0:03:40]} 21. Nxd4 {[%emt 0:00:25]} c5 {[%emt 0:00:10]} 22. Nf3 {[%emt 0:03:07]} d5 {[%emt 0:00:04]} 23. Qc2 {[%emt 0:06:54]} Nf6 {[%emt 0:01:57]} 24. a5 {[%emt 0:10:50]} N8d7 {[%emt 0:00:55]} 25. Qa4 {[%emt 0:03:14]} Bb8 {[%emt 0:01:21]} 26. Qh4 {[%emt 0:07:32]} Re7 {[%emt 0:02:53]} 27. g3 {[%emt 0:03:15]} Rde8 {[%emt 0:00:18]} 28. Kg2 {[%emt 0:00:18]} Qc6 {[%emt 0:02:21]} 29. Qa4 {[%emt 0:03:23]} Qc8 {[%emt 0:03:07]} 30. Rad1 {[%emt 0:02:32]} Ne4 {[%emt 0:01:32]} 31. Bxe4 {[%emt 0:05:13]} Rxe4 {[%emt 0:00:46]} 32. Qb3 {[%emt 0:04:02]} Nf6 {[%emt 0:05:40]} 33. Qb6 {[%emt 0:00:50]} Nd7 {[%emt 0:03:23]} 34. Qb3 {[%emt 0:00:20]} c4 {[%emt 0:00:25]} 35. Qa4 {[%emt 0:02:08]} Nf6 {[%emt 0:00:06]} 36. Bd4 {[%emt 0:00:57]} Nh5 {[%emt 0:07:12]} 37. b3 {[%emt 0:07:42]} cxb3 {[%emt 0:02:39]} 38. Qxb3 {[%emt 0:00:41]} Qxf5 {[%emt 0:01:19]} 39. Qxb7 {[%emt 0:03:13]} Nxg3 {[%emt 0:00:57]} 40. fxg3 {[%emt 0:01:02]} Re2+ {[%emt 0:00:13]} 41. Bf2 {[%emt 0:01:27]} Bxg3 {[%emt 0:00:25]} 42. Rxe2 {[%emt 0:00:31]} Rxe2 {[%emt 0:00:01]} 43. Rf1 {[%emt 0:01:47]} Bxf2 {[%emt 0:01:24]} 44. Rxf2 {[%emt 0:00:47]} Re6 {[%emt 0:00:18]} 45. Qb8+ {[%emt 0:00:50]} Kh7 {[%emt 0:00:02]} 46. Kh2 {[%emt 0:00:40]} Re3 {[%emt 0:00:53]} 47. Qg3 {[%emt 0:00:03]} Qd3 {[%emt 0:00:42]} 48. Qf4 {[%emt 0:00:35]} Qxc3 {[%emt 0:00:37]} 49. Qxf7 {[%emt 0:00:51]} Qd3 {[%emt 0:00:23]} 50. Rg2 {[%emt 0:00:32]} Qc3 {[%emt 0:00:09]} 51. Qg6+ {[%emt 0:00:51]} Kh8 {[%emt 0:00:09]} 52. Rc2 {[%emt 0:00:35]} Re6 {[%emt 0:00:57]} 53. Qxh6+ {[%emt 0:00:38]} Rxh6 {[%emt 0:00:47]} 54. Rxc3 {[%emt 0:00:03]} Rd6 {[%emt 0:00:26]} 55. Ng5 {[%emt 0:00:37]} 1-0

[Event "VIII Iberoamericano Mexico 2022"]
[Site "Mexico City"]
[Date "2022.02.19"]
[Round "9.10"]
[White "Veiga, Jose Francisco R P N"]
[Black "Gonzalez Zamora, Juan Carlos"]
[Result "1/2-1/2"]
[ECO "E62"]
[WhiteElo "2366"]
[BlackElo "2544"]
[Annotator "ChessBase"]
[PlyCount "88"]
[EventDate "2022.02.12"]
[EventType "swiss"]
[EventCountry "MEX"]
[SourceTitle "playchess.com"]
[Source "ChessBase"]
[SourceQuality "1"]
[TimeControl "5400+30"]

1. Nf3 {[%emt 0:00:06]} Nf6 {[%emt 0:00:40]} 2. g3 {[%emt 0:00:11]} g6 {[%emt 0:00:07]} 3. Bg2 {[%emt 0:00:11]} Bg7 {[%emt 0:00:05]} 4. O-O {[%emt 0:00:13]} O-O {[%emt 0:00:04]} 5. c4 {[%emt 0:00:29]} d6 {[%emt 0:00:07]} 6. d4 {[%emt 0:01:16]} Nc6 {[%emt 0:00:07]} 7. Nc3 {[%emt 0:00:17]} Bf5 {[%emt 0:00:15]} 8. b3 {[%emt 0:01:44]} Ne4 {[%emt 0:06:10]} 9. Bb2 {[%emt 0:01:18]} Nxc3 {[%emt 0:00:06]} 10. Bxc3 {[%emt 0:00:05]} Be4 {[%emt 0:00:05]} 11. Qd2 {[%emt 0:04:09]} d5 {[%emt 0:01:26]} 12. Ne5 {[%emt 0:05:25]} Nxe5 {[%emt 0:12:16]} 13. dxe5 {[%emt 0:00:56]} Bxg2 {[%emt 0:00:15]} 14. Kxg2 {[%emt 0:00:07]} dxc4 {[%emt 0:00:56]} 15. Qxd8 {[%emt 0:00:11]} Rfxd8 {[%emt 0:00:15]} 16. bxc4 {[%emt 0:00:27]} Kf8 {[%emt 0:01:45]} 17. Rab1 {[%emt 0:01:13]} b6 {[%emt 0:01:17]} 18. Rfd1 {[%emt 0:00:43]} Ke8 {[%emt 0:01:47]} 19. Kf3 {[%emt 0:00:33]} a6 {[%emt 0:00:32]} 20. a4 {[%emt 0:02:33]} Rxd1 {[%emt 0:00:42]} 21. Rxd1 {[%emt 0:00:02]} e6 {[%emt 0:00:06]} 22. Ke4 {[%emt 0:02:18]} Bf8 {[%emt 0:00:29]} 23. Bd4 {[%emt 0:06:15]} Rd8 {[%emt 0:00:27]} 24. Rd3 {[%emt 0:03:35]} h5 {[%emt 0:01:35]} 25. h3 {[%emt 0:02:00]} Rb8 {[%emt 0:00:10]} 26. Rb3 {[%emt 0:01:21]} Be7 {[%emt 0:03:39]} 27. g4 {[%emt 0:02:39]} hxg4 {[%emt 0:03:05]} 28. hxg4 {[%emt 0:00:02]} c5 {[%emt 0:04:59]} 29. Bb2 {[%emt 0:02:50]} Rb7 {[%emt 0:02:22]} 30. Bc1 {[%emt 0:08:18]} Kd8 {[%emt 0:09:07]} 31. Rf3 {[%emt 0:03:33]} Rd7 {[%emt 0:01:47]} 32. Rd3 {[%emt 0:02:20]} Kc7 {[%emt 0:00:10]} 33. Rxd7+ {[%emt 0:00:56]} Kxd7 {[%emt 0:00:05]} 34. Kd3 {[%emt 0:03:41]} Kc6 {[%emt 0:01:35]} 35. Kc2 {[%emt 0:00:19]} Bh4 {[%emt 0:00:23]} 36. Be3 {[%emt 0:00:48]} Bd8 {[%emt 0:00:23]} 37. Bd2 {[%emt 0:03:17]} Bc7 {[%emt 0:00:29]} 38. Bc3 {[%emt 0:01:08]} b5 {[%emt 0:00:10]} 39. Kb3 {[%emt 0:00:16]} Bd8 {[%emt 0:02:42]} 40. Bd2 {[%emt 0:02:54]} Bb6 {[%emt 0:01:31]} 41. g5 {[%emt 0:01:25]} Bd8 {[%emt 0:02:05]} 42. f4 {[%emt 0:00:19]} Bc7 {[%emt 0:02:05]} 43. Be1 {[%emt 0:00:34]} Bd8 {[%emt 0:00:17]} 44. Bd2 {[%emt 0:00:07]} Bc7 {[%emt 0:43:52]} 1/2-1/2

[Event "VIII Iberoamericano Mexico 2022"]
[Site "Mexico City"]
[Date "2022.02.19"]
[Round "9.11"]
[White "Sanchez Alvarez, Roberto Carlos"]
[Black "Rodriguez Vila, Andres"]
[Result "1-0"]
[ECO "E32"]
[WhiteElo "2407"]
[BlackElo "2461"]
[Annotator "ChessBase"]
[PlyCount "61"]
[EventDate "2022.02.12"]
[EventType "swiss"]
[EventCountry "MEX"]
[SourceTitle "playchess.com"]
[Source "ChessBase"]
[SourceQuality "1"]
[TimeControl "5400+30"]

1. d4 {[%emt 0:00:15]} e6 {[%emt 0:00:18]} 2. c4 {[%emt 0:00:34]} Nf6 {[%emt 0:00:50]} 3. Nc3 {[%emt 0:00:12]} Bb4 {[%emt 0:00:05]} 4. Nf3 {[%emt 0:02:24]} O-O {[%emt 0:00:24]} 5. Qc2 {[%emt 0:00:26]} d6 {[%emt 0:00:50]} 6. g3 {[%emt 0:12:58]} c5 {[%emt 0:03:58]} 7. dxc5 {[%emt 0:06:45]} dxc5 {[%emt 0:00:22]} 8. Bd2 {[%emt 0:00:01]} Nc6 {[%emt 0:00:52]} 9. a3 {[%emt 0:00:03]} Ba5 {[%emt 0:00:51]} 10. e3 {[%emt 0:00:47]} e5 {[%emt 0:01:53]} 11. Bg2 {[%emt 0:03:17]} Be6 {[%emt 0:00:16]} 12. b3 {[%emt 0:00:47]} Qc8 {[%emt 0:01:00]} 13. O-O {[%emt 0:00:32]} Rd8 {[%emt 0:02:08]} 14. Rfd1 {[%emt 0:00:39]} Bf5 {[%emt 0:01:10]} 15. Qb2 {[%emt 0:01:50]} Bg4 {[%emt 0:04:17]} 16. Nd5 {[%emt 0:01:25]} Bxd2 {[%emt 0:16:42]} 17. Rxd2 {[%emt 0:11:04]} Qf5 {[%emt 0:07:33]} 18. Nh4 {[%emt 0:06:35]} Qh5 {[%emt 0:00:08]} 19. h3 {[%emt 0:04:58]} Be6 {[%emt 0:00:17]} 20. Rad1 {[%emt 0:00:11]} Rdc8 {[%emt 0:15:14]} 21. f4 {[%emt 0:16:30]} Nd7 {[%emt 0:06:06]} 22. Nc3 {[%emt 0:06:04]} exf4 {[%emt 0:02:07]} 23. exf4 {[%emt 0:00:33]} Nb6 {[%emt 0:01:41]} 24. Ne4 {[%emt 0:01:55]} Rab8 {[%emt 0:06:02]} 25. Bf3 {[%emt 0:03:41]} Qh6 {[%emt 0:00:21]} 26. Nxc5 {[%emt 0:00:49]} Bxh3 {[%emt 0:06:36]} 27. Rd6 {[%emt 0:00:27]} Be6 {[%emt 0:02:45]} 28. Bxc6 {[%emt 0:00:21]} bxc6 {[%emt 0:00:14]} 29. Nf5 {[%emt 0:00:14]} Bxf5 {[%emt 0:05:12]} 30. Re6 {[%emt 0:00:10]} Qxe6 {[%emt 0:00:03]} 31. Qf6 {[%emt 0:01:59]} 1-0

[Event "VIII Iberoamericano Mexico 2022"]
[Site "Mexico City"]
[Date "2022.02.19"]
[Round "9.14"]
[White "Quesada Perez, Luis Ernesto"]
[Black "Sandoval Mercado, Carlos"]
[Result "1-0"]
[ECO "E76"]
[WhiteElo "2517"]
[BlackElo "2289"]
[Annotator "ChessBase"]
[PlyCount "47"]
[EventDate "2022.02.12"]
[EventType "swiss"]
[EventCountry "MEX"]
[SourceTitle "playchess.com"]
[Source "ChessBase"]
[SourceQuality "1"]
[TimeControl "5400+30"]

1. d4 {[%emt 0:00:02]} Nf6 {[%emt 0:00:08]} 2. c4 {[%emt 0:00:06]} g6 {[%emt 0:00:06]} 3. Nc3 {[%emt 0:00:06]} Bg7 {[%emt 0:00:09]} 4. e4 {[%emt 0:00:06]} d6 {[%emt 0:00:06]} 5. f4 {[%emt 0:00:15]} O-O {[%emt 0:02:46]} 6. Nf3 {[%emt 0:00:05]} c5 {[%emt 0:00:05]} 7. d5 {[%emt 0:00:04]} e6 {[%emt 0:00:03]} 8. dxe6 {[%emt 0:00:05]} fxe6 {[%emt 0:00:21]} 9. Bd3 {[%emt 0:00:04]} Nc6 {[%emt 0:00:04]} 10. O-O {[%emt 0:00:07]} Nd4 {[%emt 0:00:46]} 11. Nxd4 {[%emt 0:00:36]} cxd4 {[%emt 0:00:10]} 12. Nb5 {[%emt 0:00:01]} a6 {[%emt 0:09:28]} 13. Nxd4 {[%emt 0:00:02]} Qb6 {[%emt 0:01:55]} 14. Be3 {[%emt 0:00:02]} Ng4 {[%emt 0:01:13]} 15. Qxg4 {[%emt 0:00:02]} Bxd4 {[%emt 0:00:07]} 16. Bf2 {[%emt 0:00:02]} Qxb2 {[%emt 0:08:54]} 17. Rad1 {[%emt 0:00:01]} e5 {[%emt 0:10:40]} 18. f5 {[%emt 0:00:07]} Kh8 {[%emt 0:00:04]} 19. Qh4 {[%emt 0:01:33]} Qb6 {[%emt 0:34:17]} 20. Kh1 {[%emt 0:02:53]} Bxf2 {[%emt 0:02:52]} 21. Rxf2 {[%emt 0:00:02]} Rf7 {[%emt 0:00:26]} 22. fxg6 {[%emt 0:03:07]} Qxf2 {[%emt 0:03:59]} 23. gxf7 {[%emt 0:00:01]} Qxf7 {[%emt 0:00:08]} 24. Rf1 {[%emt 1:33:01]} 1-0

[Event "VIII Iberoamericano Mexico 2022"]
[Site "Mexico City"]
[Date "2022.02.19"]
[Round "9.15"]
[White "Dominguez Aguilar, Guillermo"]
[Black "Perez Gormaz, Matias"]
[Result "1-0"]
[ECO "B23"]
[WhiteElo "2321"]
[BlackElo "2404"]
[Annotator "NA"]
[PlyCount "65"]
[EventDate "2022.02.12"]
[EventType "swiss"]
[EventCountry "MEX"]
[SourceTitle "playchess.com"]
[Source "ChessBase"]
[SourceQuality "1"]
[TimeControl "5400+30"]

1. e4 {[%emt 0:13:59]} c5 {[%emt 0:00:08]} 2. Nc3 {[%emt 0:00:10]} Nc6 {[%emt 0:00:08]} 3. f4 {[%emt 0:00:06]} g6 {[%emt 0:00:13]} 4. Nf3 {[%emt 0:00:24]} Bg7 {[%emt 0:00:10]} 5. Bb5 {[%emt 0:00:26]} Nd4 {[%emt 0:00:10]} 6. O-O {[%emt 0:00:54]} Nxb5 {[%emt 0:15:58]} 7. Nxb5 {[%emt 0:00:35]} d5 {[%emt 0:00:49]} 8. exd5 {[%emt 0:00:37]} a6 {[%emt 0:00:06]} 9. Nc3 {[%emt 0:01:24]} Nf6 {[%emt 0:00:08]} 10. d4 {[%emt 0:00:24]} c4 {[%emt 0:10:36]} 11. Ne5 {[%emt 0:06:43]} Nxd5 {[%emt 0:00:22]} 12. Qe2 $11 {[%emt 0:04:45]} Nxc3 {[%emt 0:19:20]} 13. bxc3 {[%emt 0:00:35]} Be6 {[%emt 0:00:02]} 14. Rb1 {[%emt 0:02:57]} Qc7 {[%emt 0:10:23]} 15. Qe4 {[%emt 0:16:33]} Rb8 {[%emt 0:07:37]} 16. Ba3 {[%emt 0:00:41]} O-O {[%emt 0:00:32]} 17. Bc5 {[%emt 0:00:35]} b6 {[%emt 0:02:47]} 18. Ba3 {[%emt 0:00:21]} Rbc8 {[%emt 0:00:54]} 19. d5 {[%emt 0:01:47]} Bf5 {[%emt 0:02:16]} 20. Qe3 {[%emt 0:00:28]} b5 {[%emt 0:04:48]} 21. Nc6 {[%emt 0:02:22]} Bf6 {[%emt 0:00:02]} 22. Nxe7+ {[%emt 0:02:28]} Bxe7 {[%emt 0:00:04]} 23. Bxe7 {[%emt 0:02:13]} Rfe8 {[%emt 0:00:04]} 24. Rbe1 {[%emt 0:00:18]} Bxc2 {[%emt 0:03:22]} 25. d6 {[%emt 0:01:08]} Qd7 {[%emt 0:00:06]} 26. Rf2 {[%emt 0:00:41]} Bf5 {[%emt 0:00:14]} 27. h3 {[%emt 0:00:41]} h5 {[%emt 0:04:23]} 28. Qd4 {[%emt 0:09:02]} Rc6 {[%emt 0:01:37]} 29. Re5 {[%emt 0:00:46]} b4 {[%emt 0:07:36]} 30. g4 {[%emt 0:02:33]} hxg4 {[%emt 0:00:03]} 31. hxg4 {[%emt 0:00:06]} Bd3 {[%emt 0:00:42]} 32. f5 {[%emt 0:00:46]} f6 {[%emt 0:00:01]} 33. Re6 {[%emt 0:02:15]} 1-0

[Event "VIII Iberoamericano Mexico 2022"]
[Site "Mexico City"]
[Date "2022.02.19"]
[Round "9.16"]
[White "Valdes Romero, Leonardo"]
[Black "Estrada Nieto, Julian"]
[Result "1/2-1/2"]
[ECO "D05"]
[WhiteElo "2404"]
[BlackElo "2253"]
[Annotator "NA"]
[PlyCount "34"]
[EventDate "2022.02.12"]
[EventType "swiss"]
[EventCountry "MEX"]
[SourceTitle "playchess.com"]
[Source "ChessBase"]
[SourceQuality "1"]
[TimeControl "5400+30"]

1. Nf3 {[%emt 0:00:50]} d5 {[%emt 0:06:48]} 2. d4 {[%emt 0:02:08]} Nf6 {[%emt 0:00:07]} 3. e3 {[%emt 0:00:04]} e6 {[%emt 0:01:11]} 4. Nbd2 {[%emt 0:01:25]} c5 {[%emt 0:09:16]} 5. c3 {[%emt 0:00:58]} Nc6 {[%emt 0:02:03]} 6. Bd3 {[%emt 0:00:09]} Bd6 {[%emt 0:02:24]} 7. O-O {[%emt 0:00:54]} O-O {[%emt 0:00:08]} 8. dxc5 {[%emt 0:02:09]} Bxc5 {[%emt 0:00:37]} 9. e4 {[%emt 0:00:05]} Qc7 {[%emt 0:16:41]} 10. Qe2 {[%emt 0:00:54]} Ne5 {[%emt 0:01:53]} (10... b6 $11) 11. Nxe5 {[%emt 0:04:05]} Qxe5 {[%emt 0:00:04]} 12. Nf3 {[%emt 0:00:05]} Qh5 {[%emt 0:00:21]} 13. e5 $1 {[%emt 0:00:25]} Nd7 $14 {[%emt 0:00:19]} 14. h3 {[%emt 0:10:40]} f6 {[%emt 0:01:19]} 15. exf6 {[%emt 0:00:19]} Nxf6 {[%emt 0:54:49]} 16. Bf4 {[%emt 1:13:20]} Bd7 {[%emt 0:00:30]} 17. Bc1 {[%emt 0:00:30]} Bc8 {[%emt 0:00:30]} 1/2-1/2

[Event "VIII Iberoamericano Mexico 2022"]
[Site "Mexico City"]
[Date "2022.02.19"]
[Round "9.17"]
[White "Diaz Rosas, Julio Cesar"]
[Black "Tapie Amione, Pablo Adib"]
[Result "1/2-1/2"]
[ECO "B52"]
[WhiteElo "2393"]
[BlackElo "2241"]
[Annotator "NA"]
[PlyCount "24"]
[EventDate "2022.02.12"]
[EventType "swiss"]
[EventCountry "MEX"]
[SourceTitle "playchess.com"]
[Source "ChessBase"]
[SourceQuality "1"]
[TimeControl "5400+30"]

1. e4 {[%emt 0:00:14]} c5 {[%emt 0:10:20]} 2. Nf3 {[%emt 0:00:09]} d6 {[%emt 0:00:20]} 3. Bb5+ {[%emt 0:00:08]} Bd7 {[%emt 0:00:07]} 4. Bxd7+ {[%emt 0:00:09]} Nxd7 {[%emt 0:00:07]} 5. O-O {[%emt 0:00:08]} Ngf6 {[%emt 0:00:04]} 6. Re1 {[%emt 0:00:07]} e6 {[%emt 0:00:28]} 7. c3 {[%emt 0:00:10]} Be7 {[%emt 0:00:10]} 8. d4 {[%emt 0:00:08]} O-O {[%emt 0:00:12]} 9. a4 {[%emt 0:00:10]} Rc8 {[%emt 0:11:04]} 10. Nbd2 {[%emt 0:00:21]} a6 {[%emt 0:06:57]} 11. Qe2 {[%emt 0:09:18]} Qc7 {[%emt 0:06:50]} 12. a5 $15 {[%emt 0:14:32]} cxd4 {[%emt 0:03:08]} 1/2-1/2

[Event "VIII Iberoamericano Mexico 2022"]
[Site "Mexico City"]
[Date "2022.02.19"]
[Round "9.18"]
[White "Miranda Rodriguez, Tania"]
[Black "Leon Valdes, Jony Wilson"]
[Result "0-1"]
[ECO "C03"]
[WhiteElo "2174"]
[BlackElo "2392"]
[Annotator "NA"]
[PlyCount "76"]
[EventDate "2022.02.12"]
[EventType "swiss"]
[EventCountry "MEX"]
[SourceTitle "playchess.com"]
[Source "ChessBase"]
[SourceQuality "1"]
[TimeControl "5400+30"]

1. e4 {[%emt 0:00:04]} e6 {[%emt 0:04:15]} 2. d4 {[%emt 0:00:07]} d5 {[%emt 0:00:05]} 3. Nd2 {[%emt 0:00:21]} a5 {[%emt 0:01:13]} 4. a4 {[%emt 0:00:24]} Nf6 {[%emt 0:04:04]} 5. e5 {[%emt 0:00:55]} Nfd7 {[%emt 0:00:05]} 6. f4 {[%emt 0:01:45]} c5 {[%emt 0:00:13]} 7. c3 {[%emt 0:00:52]} Nc6 {[%emt 0:00:14]} 8. Ndf3 {[%emt 0:01:03]} Qb6 {[%emt 0:01:57]} 9. g3 {[%emt 0:01:57]} cxd4 {[%emt 0:01:16]} 10. cxd4 {[%emt 0:00:07]} f6 {[%emt 0:00:06]} 11. Bd3 {[%emt 0:01:59]} Nb4 {[%emt 0:01:55]} 12. Bb1 {[%emt 0:02:00]} Be7 {[%emt 0:06:04]} 13. Kf1 {[%emt 0:04:11]} Nb8 {[%emt 0:00:59]} 14. Kg2 {[%emt 0:01:16]} N8c6 {[%emt 0:01:23]} 15. h4 {[%emt 0:01:57]} Bd7 {[%emt 0:00:07]} 16. h5 {[%emt 0:06:57]} O-O-O {[%emt 0:02:39]} 17. Ne2 $11 {[%emt 0:04:47]} Kb8 {[%emt 0:09:43]} 18. h6 {[%emt 0:07:41]} g6 {[%emt 0:01:29]} 19. exf6 {[%emt 0:02:37]} Bxf6 {[%emt 0:00:05]} 20. Ne5 {[%emt 0:02:52]} Be8 {[%emt 0:01:31]} 21. Ra3 {[%emt 0:01:42]} Ka8 {[%emt 0:04:09]} 22. Be3 {[%emt 0:05:20]} Rf8 {[%emt 0:14:49]} 23. Rf1 {[%emt 0:07:20]} Ne7 {[%emt 0:02:36]} 24. g4 {[%emt 0:04:21]} Nc8 {[%emt 0:00:15]} 25. Rc3 {[%emt 0:06:32]} Nd6 {[%emt 0:00:42]} 26. b3 {[%emt 0:00:54]} Ne4 {[%emt 0:04:50]} 27. Bxe4 {[%emt 0:03:58]} dxe4 {[%emt 0:01:26]} 28. Ng3 {[%emt 0:05:36]} Nd5 {[%emt 0:02:30]} 29. Qc1 {[%emt 0:04:14]} Nxc3 {[%emt 0:04:43]} 30. Qxc3 {[%emt 0:00:04]} Bxe5 {[%emt 0:02:07]} 31. dxe5 {[%emt 0:04:56]} Qb4 {[%emt 0:00:22]} 32. Qc7 {[%emt 0:05:34]} Bc6 {[%emt 0:00:21]} 33. Qxh7 {[%emt 0:01:59]} Qc3 {[%emt 0:07:39]} 34. Kf2 {[%emt 0:02:47]} Rd2+ {[%emt 0:12:44]} 35. Ne2 {[%emt 0:01:44]} Rxe2+ {[%emt 0:00:36]} 36. Kxe2 {[%emt 0:00:11]} Qc2+ {[%emt 0:00:05]} 37. Bd2 {[%emt 0:01:48]} Qd3+ {[%emt 0:00:49]} 38. Ke1 {[%emt 0:00:32]} e3 {[%emt 0:00:14]} 0-1

[Event "VIII Iberoamericano Mexico 2022"]
[Site "Mexico City"]
[Date "2022.02.19"]
[Round "9.19"]
[White "Gemy, Jose Daniel"]
[Black "Hernandez Jimenez, Alexander Andres"]
[Result "1-0"]
[ECO "B27"]
[WhiteElo "2381"]
[BlackElo "2167"]
[Annotator "NA"]
[PlyCount "79"]
[EventDate "2022.02.12"]
[EventType "swiss"]
[EventCountry "MEX"]
[SourceTitle "playchess.com"]
[Source "ChessBase"]
[SourceQuality "1"]
[TimeControl "5400+30"]

1. e4 {[%emt 0:02:13]} c5 {[%emt 0:03:00]} 2. Nf3 {[%emt 0:00:09]} g6 {[%emt 0:01:00]} 3. c3 {[%emt 0:00:09]} Bg7 {[%emt 0:01:51]} 4. d4 {[%emt 0:00:07]} cxd4 {[%emt 0:02:27]} 5. cxd4 {[%emt 0:00:03]} d5 {[%emt 0:00:27]} 6. e5 {[%emt 0:00:22]} Nc6 {[%emt 0:01:53]} 7. Bb5 {[%emt 0:00:19]} Bg4 {[%emt 0:01:12]} 8. Bxc6+ {[%emt 0:00:16]} bxc6 {[%emt 0:00:03]} 9. Nbd2 {[%emt 0:02:00]} Nh6 {[%emt 0:10:49]} 10. Nb3 {[%emt 0:02:39]} f6 {[%emt 0:11:46]} 11. exf6 {[%emt 0:09:08]} exf6 {[%emt 0:00:09]} 12. O-O {[%emt 0:00:07]} O-O {[%emt 0:00:12]} 13. h3 {[%emt 0:00:04]} Bxf3 $14 {[%emt 0:10:23]} 14. Qxf3 {[%emt 0:00:04]} Nf5 {[%emt 0:00:05]} 15. Bf4 {[%emt 0:01:30]} Qb6 {[%emt 0:03:42]} 16. Qc3 {[%emt 0:03:38]} Rfe8 {[%emt 0:02:36]} 17. Rac1 {[%emt 0:04:28]} Re4 {[%emt 0:03:43]} 18. Bd2 {[%emt 0:04:35]} Rc8 {[%emt 0:05:18]} 19. Rce1 {[%emt 0:09:36]} Rce8 {[%emt 0:03:53]} 20. Nc5 {[%emt 0:10:48]} Rxe1 {[%emt 0:00:13]} 21. Rxe1 {[%emt 0:00:10]} Rxe1+ {[%emt 0:00:06]} 22. Bxe1 {[%emt 0:00:03]} Qb5 {[%emt 0:05:30]} 23. g4 {[%emt 0:03:33]} Nd6 {[%emt 0:06:21]} 24. Qe3 {[%emt 0:00:17]} Ne4 {[%emt 0:01:06]} 25. Nxe4 {[%emt 0:00:41]} dxe4 {[%emt 0:00:02]} 26. Qxe4 {[%emt 0:00:13]} Kf7 {[%emt 0:02:22]} 27. Bc3 {[%emt 0:01:57]} f5 {[%emt 0:00:20]} 28. Qf4 {[%emt 0:00:12]} h5 {[%emt 0:07:20]} 29. gxh5 {[%emt 0:04:06]} gxh5 {[%emt 0:00:04]} 30. Qg5 {[%emt 0:00:12]} Bf6 {[%emt 0:03:38]} 31. Qxh5+ {[%emt 0:00:21]} Kg7 {[%emt 0:00:01]} 32. Qf3 {[%emt 0:00:28]} Kg6 {[%emt 0:00:07]} 33. Qg3+ {[%emt 0:00:21]} Kh5 {[%emt 0:01:16]} 34. Qc7 {[%emt 0:00:53]} Qd3 {[%emt 0:03:23]} 35. Qf7+ {[%emt 0:01:18]} Kg5 {[%emt 0:00:02]} 36. h4+ {[%emt 0:00:34]} Kg4 {[%emt 0:01:55]} 37. Qxf6 {[%emt 0:00:41]} Kh3 {[%emt 0:00:38]} 38. Qe5 {[%emt 0:03:06]} Qd1+ {[%emt 0:00:10]} 39. Be1 {[%emt 0:03:16]} f4 {[%emt 0:00:48]} 40. Qe6+ {[%emt 0:00:05]} 1-0